Cogmind - Beta 11.1 @@@ ROGUE MODE // 2022.11.10 @ 17:38:13 Player: Infomantis Result: Self-destructed Performance ------------- Evolutions (2) 1000 Regions Visited (5) 1000 Robots Destroyed (31) 155 Value Destroyed (514) 514 Prototype IDs (23) 460 Alien Tech Used (0) 0 Bonus (1300) 1300 TOTAL SCORE: 4429 Bonus ------- Unstable Evolution 1000 Aligned with FarCom 300 Cogmind --------- Core Integrity 550/550 Matter 250/300 Energy 250/250 System Corruption 0% Temperature Cool (0) Movement Rolling (100) Location -8/Materials Parts ------- > --- POWER (1) -------- Ion Engine > --- PROPULSION (3) --- Armored Huge Wheel > --- UTILITY (4) ------ Medium Storage Unit Seismic Detector > --- WEAPON (3) ------- Light Assault Rifle Flak Gun > --- INVENTORY (10) --- Reinforced Deuterium Engine Fission Core Light Treads Medium Treads Improved Heat Sink Improved Cooling System Chronowheel EM Pulse Gun Heavy Laser Grenade Launcher Peak State ------------ > --- POWER ------------ Ion Engine > --- PROPULSION ------- Armored Huge Wheel > --- UTILITY ---------- Medium Storage Unit Seismic Detector > --- WEAPON ----------- Light Assault Rifle Flak Gun > --- INVENTORY -------- Reinforced Deuterium Engine Fission Core Light Treads Medium Treads Improved Heat Sink Improved Cooling System Chronowheel EM Pulse Gun Heavy Laser Grenade Launcher [Rating: 20] Favorites ----------- Power Ion Engine Engine Ion Engine Propulsion Aluminum Leg Treads Light Treads Leg Aluminum Leg Wheel Armored Huge Wheel Utility Seismic Detector Device Seismic Detector Storage Medium Storage Unit Weapon Light Assault Rifle Energy Gun EM Pulse Gun Ballistic Gun Light Assault Rifle Launcher Grenade Launcher Build | -11 -10 -10 -10 -9 -8 ------- Run | Scr Mat Min Exi Min Mat Slots Evolved 4 | . . . . . 4 Power . | . . . . . . Propulsion 1 | . . . . . 1 Utility 2 | . . . . . 2 Weapon 1 | . . . . . 1 Parts Attached 29 | 8 12 5 1 3 . Power 4 | 1 2 1 . . . Engine 4 | 1 2 1 . . . Core . | . . . . . . Reactor . | . . . . . . Propulsion 11 | 3 5 2 . 1 . Treads 1 | 1 . . . . . Leg 9 | 2 5 2 . . . Wheel 1 | . . . . 1 . Hover . | . . . . . . Flight . | . . . . . . Utility 4 | 2 2 . . . . Device 2 | 1 1 . . . . Storage 2 | 1 1 . . . . Processor . | . . . . . . Hackware . | . . . . . . Protection . | . . . . . . Artifact . | . . . . . . Weapon 10 | 2 3 2 1 2 . Energy Gun 1 | . 1 . . . . Energy Cannon . | . . . . . . Ballistic Gun 8 | 2 2 2 . 2 . Ballistic Cannon . | . . . . . . Launcher 1 | . . . 1 . . Special Weapon . | . . . . . . Impact Weapon . | . . . . . . Slashing Weapon . | . . . . . . Piercing Weapon . | . . . . . . Special Melee Weapon . | . . . . . . Unidentified Prototypes . | . . . . . . Parts Lost 5 | . 2 3 . . . Power 2 | . 1 1 . . . Propulsion . | . . . . . . Utility 1 | . 1 . . . . Weapon 2 | . . 2 . . . Highest Loss Streak 2 | . 1 2 . . . To Critical Strikes . | . . . . . . Average Slot Usage (%) 96 | . 99 91 100 93 54 Engine 13 | . 14 11 14 14 9 Leg 26 | . 28 28 28 16 . Device 13 | . 13 14 14 14 9 Storage 13 | . 14 14 14 14 9 Energy Gun 1 | . 2 . . . . Ballistic Gun 25 | . 25 22 26 28 18 Naked Turns . | . . . . . . Heaviest Build 21 | 13 20 19 20 21 21 Greatest Support 28 | 20 20 20 20 28 28 Greatest Overweight (x) 1 | . . . . 1 . Average Overweight (x) . | . . . . . . Largest Inventory Capacity 10 | 8 10 10 10 10 10 Average Capacity 9 | 7 9 10 10 10 10 Most Carried 10 | 8 10 10 10 10 10 Average Carried 9 | 4 9 9 9 9 10 Final Capacity 10 | 8 10 10 10 10 10 Final Carried 10 | 8 9 10 10 10 10 Class Distribution -------------------- 55% | Mutant 44% | Scavenger-Mutant Dominant Class ---------------- Mutant | -10/Materials Scavenger-Mutant | -10/Mines Scavenger-Mutant | -10/Exiles Scavenger-Mutant | -9/Mines Mutant | -8/Materials Resources | -11 -10 -10 -10 -9 -8 ----------- Run | Scr Mat Min Exi Min Mat Matter Collected 849 | 346 385 95 . 23 . Remotely . | . . . . . . Salvage Created 895 | 170 507 218 . . . Parts 63 | 13 38 12 . . . Haulers Intercepted 1 | . 1 . . . . Recyclers Shooed 3 | 1 1 . . 1 . Parts Field Recycled . | . . . . . . Retrieved Matter . | . . . . . . Parts Self-Destructed . | . . . . . . Prevented . | . . . . . . Kills | -11 -10 -10 -10 -9 -8 ------- Run | Scr Mat Min Exi Min Mat Combat Hostiles Destroyed 21 | . 16 5 . . . Guns 21 | . 16 5 . . . Classes Destroyed 8 | 2 6 . . . . Worker 1 | . 1 . . . . Tunneler 4 | 4 . . . . . Hauler 1 | . 1 . . . . Recycler 2 | 1 . 1 . . . Operator 1 | . 1 . . . . Watcher 1 | . 1 . . . . Swarmer 12 | . 9 3 . . . Grunt 9 | . 7 2 . . . Best Kill Streak 5 | 4 5 4 . . . Combat Bots Only 5 | . 5 3 . . . Max Kills in Single Turn 1 | 1 1 1 . . . Gunslinging . | . . . . . . Exploded . | . . . . . . Melee . | . . . . . . Uniques/NPCs Destroyed . | . . . . . . Combat | -11 -10 -10 -10 -9 -8 -------- Run | Scr Mat Min Exi Min Mat Damage Taken 972 | . 567 363 . 42 . Core 167 | . 90 64 . 13 . Absorbed by Shields . | . . . . . . Core Remaining (%) 66 | 100 . . . 33 . Volleys Fired 119 | 12 61 43 3 . . Largest 2 | 2 2 2 1 . . Hottest 40 | 40 40 40 30 . . Shots Fired 191 | 24 112 52 3 . . Gun 188 | 24 112 52 . . . Cannon . | . . . . . . Launcher 3 | . . . 3 . . Special . | . . . . . . Kinetic 178 | 24 102 52 . . . Thermal . | . . . . . . Explosive 3 | . . . 3 . . Electromagnetic 10 | . 10 . . . . Robot Hit Streak 16 | 5 9 16 . . . Robot Miss Streak 6 | 3 6 3 . . . Penetration Max . | . . . . . . Secondary Targets 5 | . 4 1 . . . Max Gunslinging Chain 1 | . 1 1 . . . Shots Hit Robots 113 | 14 62 37 . . . Core Hits 47 | 6 28 13 . . . Critical Kills . | . . . . . . Critical Parts Destroyed 1 | . . 1 . . . Critical Strikes 1 | . . 1 . . . Destroy 1 | . . 1 . . . Melee Attacks . | . . . . . . Impact . | . . . . . . Slashing . | . . . . . . Piercing . | . . . . . . Sneak Attacks . | . . . . . . Combat Hostiles . | . . . . . . Follow-up Attacks . | . . . . . . Damage Inflicted 1379 | 180 876 317 . 6 . Guns 1327 | 180 830 317 . . . Cannons . | . . . . . . Explosions 46 | . 46 . . . . Melee . | . . . . . . Ramming 6 | . . . . 6 . Kinetic 1259 | 180 762 317 . . . Thermal 46 | . 46 . . . . Explosive . | . . . . . . Electromagnetic 68 | . 68 . . . . Impact . | . . . . . . Slashing . | . . . . . . Piercing . | . . . . . . Highest Corruption . | . . . . . . Average Corruption . | . . . . . . Corruption Purged . | . . . . . . Corruption Blocked . | . . . . . . Overload Shots . | . . . . . . Overflow Damage 9 | . 9 . . . . Projectiles . | . . . . . . Explosions 9 | . 9 . . . . Melee . | . . . . . . Knockbacks . | . . . . . . Impact . | . . . . . . Kinetic . | . . . . . . Secondary . | . . . . . . Self-Inflicted Damage 3 | . . . . 3 . Shots . | . . . . . . Rammed 2 | . . . . 2 . Targets Rammed 3 | . 1 . . 2 . Kicked 1 | . 1 . . . . Crushed . | . . . . . . Highest Temperature 12 | . 12 10 . . . Average Temperature 7 | . 7 7 . . . Received Heat Transfer 294 | . 186 108 . . . Siege Activations . | . . . . . . Robots Corrupted . | . . . . . . Combat Hostiles . | . . . . . . Parts Fried 1 | . 1 . . . . Impact Corruptions . | . . . . . . Robots Melted . | . . . . . . Combat Hostiles . | . . . . . . Parts Melted . | . . . . . . Heat Transferred 50 | . 50 . . . . Parts Sabotaged . | . . . . . . Parts Stolen . | . . . . . . Parts Stripped . | . . . . . . Power Chain Reactions 1 | . 1 . . . . Missiles Intercepted . | . . . . . . Alert | -11 -10 -10 -10 -9 -8 ------- Run | Scr Mat Min Exi Min Mat Peak Influence 298 | 25 298 240 . . . Initial 115 | . 16 115 . . . Average 127 | 12 170 160 . . . Maximum Alert Level 1 | . 1 1 . . . Low Security (%) 71 | 100 58 68 . 100 100 Level 1 28 | . 41 31 . . . Level 2 . | . . . . . . Level 3 . | . . . . . . Level 4 . | . . . . . . Level 5 . | . . . . . . High Security . | . . . . . . Max Security . | . . . . . . Squads Dispatched 3 | . 2 . . . 1 Investigation 1 | . 1 . . . . Extermination . | . . . . . . Reinforcement 2 | . 1 . . . 1 Assault . | . . . . . . Garrison . | . . . . . . Intercept . | . . . . . . Searches Triggered . | . . . . . . Construction Impeded . | . . . . . . Haulers Reinforced . | . . . . . . Active Scanning Responses . | . . . . . . Cargo Convoy Interrupts . | . . . . . . Stealth | -11 -10 -10 -10 -9 -8 --------- Run | Scr Mat Min Exi Min Mat Distress Signals 1 | . 1 . . . . Communications Jammed . | . . . . . . Distress Signals . | . . . . . . Times Spotted 30 | . 22 7 . . 1 Peak Tracking Total 9 | . 6 3 9 . . Tactical Retreats 3 | . 1 2 . . . Traps | -11 -10 -10 -10 -9 -8 ------- Run | Scr Mat Min Exi Min Mat Traps Triggered 1 | . . . . 1 . Indirectly . | . . . . . . Trap Hack Attempts . | . . . . . . Triggered . | . . . . . . Disarmed . | . . . . . . Reprogrammed . | . . . . . . Reused . | . . . . . . Traps Extracted . | . . . . . . Installed . | . . . . . . Triggered . | . . . . . . Machines | -11 -10 -10 -10 -9 -8 ---------- Run | Scr Mat Min Exi Min Mat Machines Disabled 1 | . . . 1 . . Max in Single Turn 1 | . . . 1 . . Machines Sabotaged . | . . . . . . Garrisons Compromised . | . . . . . . Overloaded Fab Kills . | . . . . . . Hacking | -11 -10 -10 -10 -9 -8 --------- Run | Scr Mat Min Exi Min Mat Machines Accessed 5 | . 2 . 2 1 . Terminals 1 | . 1 . . . . Fabricators . | . . . . . . Repair Stations . | . . . . . . Recycling Units 1 | . 1 . . . . Scanalyzers . | . . . . . . Garrison Access . | . . . . . . Total Hacks 6 | . 3 . 2 1 . Successful 6 | . 3 . 2 1 . Failed . | . . . . . . Catastrophic . | . . . . . . Database Lockouts . | . . . . . . Manual 4 | . 3 . 1 . . Terminals 2 | . 2 . . . . Fabricators . | . . . . . . Repair Stations . | . . . . . . Recycling Units 1 | . 1 . . . . Scanalyzers . | . . . . . . Garrison Access . | . . . . . . Terminal Hacks 3 | . . . 2 1 . Record 1 | . . . 1 . . Open Door 1 | . . . . 1 . EX-Prototype ID Bank 1 | . . . 1 . . Fabricator Hacks . | . . . . . . Repair Station Hacks . | . . . . . . Recycling Unit Hacks . | . . . . . . Scanalyzer . | . . . . . . Garrison Access Hacks . | . . . . . . Unauthorized Hacks 3 | . 3 . . . . Terminals 2 | . 2 . . . . Botnet 1 | . 1 . . . . Operators 1 | . 1 . . . . Fabricators . | . . . . . . Repair Stations . | . . . . . . Recycling Units 1 | . 1 . . . . Tunnel 1 | . 1 . . . . Scanalyzers . | . . . . . . Garrison Access . | . . . . . . Data Cores Recovered . | . . . . . . Used . | . . . . . . Hacking Detections . | . . . . . . Full Trace Events . | . . . . . . Feedback Events . | . . . . . . Feedback Blocked . | . . . . . . Robot Schematics Acquired . | . . . . . . Robots Built . | . . . . . . Authchips . | . . . . . . Time . | . . . . . . Total Robot Build Rating . | . . . . . . Part Schematics Acquired . | . . . . . . Parts Built . | . . . . . . Authchips . | . . . . . . Time . | . . . . . . Total Part Build Rating . | . . . . . . Parts Repaired . | . . . . . . Time . | . . . . . . Parts Recycled . | . . . . . . Recycled Matter . | . . . . . . Retrieved Matter . | . . . . . . Retrieved Components . | . . . . . . Parts Scanalyzed . | . . . . . . Part Schematics Acquired . | . . . . . . Parts Damaged . | . . . . . . Bothacking | -11 -10 -10 -10 -9 -8 ------------ Run | Scr Mat Min Exi Min Mat Used RIF Installer . | . . . . . . Robots Hacked . | . . . . . . Non-combat . | . . . . . . Combat . | . . . . . . Robot Hacks Applied . | . . . . . . Relay Couplers Released . | . . . . . . Fabnet Peak Effective % . | . . . . . . Robots Rewired . | . . . . . . Allies Hacked . | . . . . . . Hacks Repelled . | . . . . . . Allies | -11 -10 -10 -10 -9 -8 -------- Run | Scr Mat Min Exi Min Mat Total Allies . | . . . . . . Largest Group . | . . . . . . Highest-Rated Group . | . . . . . . Highest-Rated Ally . | . . . . . . Total Orders . | . . . . . . Ally Attacks . | . . . . . . Total Damage . | . . . . . . Kills . | . . . . . . Allies Corrupted . | . . . . . . Allies Melted . | . . . . . . Intel | -11 -10 -10 -10 -9 -8 ------- Run | Scr Mat Min Exi Min Mat Robot Analysis Total . | . . . . . . Derelict Logs Recovered 2 | . . 1 . 1 . Drone Launches . | . . . . . . Drone Recoveries . | . . . . . . Exploration | -11 -10 -10 -10 -9 -8 ------------- Run | Scr Mat Min Exi Min Mat Turns Passed 1794 | 162 716 411 302 191 12 Spaces Moved 1181 | 93 421 258 242 157 10 Core 7 | 7 . . . . . Treads 1 | 1 . . . . . Legs 1091 | 85 421 258 242 85 . Wheels 82 | . . . . 72 10 Hover . | . . . . . . Flight . | . . . . . . Fastest Speed 50 | 50 120 120 120 100 100 Average Speed 118 | 115 120 120 120 111 100 Slowest Speed 190 | 160 120 120 120 190 100 Overloaded Moves . | . . . . . . Propulsion Burnouts . | . . . . . . Robots Hopped . | . . . . . . Cave-ins Triggered . | . . . . . . Exploration Rate (%) 37 | 5 51 58 62 46 4 Regions Visited 5 Branch Regions 3 Pre-discovered Areas 2 | . 1 . 1 . . Known Exits Taken 1 | . . 1 . . . Unknown Exits Taken 4 | 1 1 . 1 1 . Scrap Searched 1 | . . . . 1 . Spaces Dug . | . . . . . . Terrain Destroyed 24 | . 5 . 19 . . Melee . | . . . . . . Projectile . | . . . . . . AOE 24 | . 5 . 19 . . Terrain Rammed . | . . . . . . Walls Destroyed . | . . . . . . Machines Disabled . | . . . . . . Actions | -11 -10 -10 -10 -9 -8 --------- Run | Scr Mat Min Exi Min Mat Total 1401 | 120 527 316 251 175 12 Wait 32 | . 18 7 . 5 2 Move 1176 | 92 420 257 241 156 10 Hop . | . . . . . . Pick Up 20 | 7 5 2 3 3 . Fast Attach 12 | 8 . 3 . 1 . Attach 2 | . 2 . . . . Detach 1 | 1 . . . . . Swap 15 | . 10 2 1 2 . Drop 21 | . 10 2 3 6 . Fire 119 | 12 61 43 3 . . Melee . | . . . . . . Ram 2 | . . . . 2 . Kick 1 | . 1 . . . . Crush . | . . . . . . Escape Stasis . | . . . . . . Rewire . | . . . . . . Trap . | . . . . . . Miscellaneous . | . . . . . . Route ------- -11/Scrapyard -10/Materials (discovered 3 exits: [*Mat x2] / [*Min]) -10/Mines (discovered 2 exits: [*Mat] / *Exi) -10/Exiles -9/Mines (discovered 2 exits: [*Mat x2]) -8/Materials History --------- Turn | Location | Event 4 | -11/Scrapyard | Discovered new exit (range 15) 163 | -11/Scrapyard | Entered Materials 312 | -10/Materials | Discovered new exit (range 7) 314 | -10/Materials | Build established: Mutant 471 | -10/Materials | Discovered new exit (range 16) 722 | -10/Materials | Discovered new exit (range 15) 879 | -10/Materials | Entered Mines 968 | -10/Mines | Discovered new exit (range 13) 1099 | -10/Mines | Identified exit to Exiles 1145 | -10/Mines | Core integrity fell below 50% 1239 | -10/Mines | Deemed a non-threat by the Exiles lab entrance 1290 | -10/Mines | Entered Exiles 1335 | -10/Exiles | Met 8R-AWN 1352 | -10/Exiles | Met EX-HEX 1364 | -10/Exiles | Build established: Scavenger-Mutant 1391 | -10/Exiles | Met EX-BIN 1405 | -10/Exiles | Aligned with FarCom system 1406 | -10/Exiles | Given EX-Vault access code 1435 | -10/Exiles | Opened EX-Vault 1442 | -10/Exiles | Found Chronowheel 1467 | -10/Exiles | Warned to stay clear of 0b10 Research branches 1499 | -10/Exiles | Met EX-DEC 1513 | -10/Exiles | Learned location of Zion (-6) 1568 | -10/Exiles | Attacked by the Exiles 1582 | -10/Exiles | Discovered new exit (range 10) 1592 | -10/Exiles | Left Exiles lab with Chronowheel 1592 | -10/Exiles | Entered Mines 1643 | -9/Mines | Discovered new exit (range 6) 1654 | -9/Mines | Met a Derelict who couldn't figure out how to use a Trap Extractor 1742 | -9/Mines | Assembled infested the area 1769 | -9/Mines | Discovered new exit (range 13) 1783 | -9/Mines | Entered Materials 1783 | -8/Materials | Evolved 4 slots: Propulsion x1, Utility x2, Weapon x1 1795 | -8/Materials | Self-destructed Last Messages --------------- 01712_ Triggered Explosive Trap. 01712_ An explosion rips through the floor. 01712_ Machine disabled. 01721_ Slammed into R-06 Scavenger. 01733_ K-01 Serf collects debris. 01742_ ALERT: Infestation in the mines, dispatching Demolisher response squad. 01748_ Searching scrap... 01748_ Found Tractor Beam. 01748_ Found 23 Matter. 01749_ Acquired 23 matter. 01769_ EXIT=FOUND WARNING=UNSTABLE PARAMETERS=PROPULSION+1,UTILITY+2,WEAPON+1 LOCATION=UNKNOWN GOAL=ESCAPE 01785_ W8-KH0(g): "What?! This place again? I'm sticking with you." 01795_ O-16 Technician: "IFF HANDSHAKE FAILED. SECURING TERMINAL." 01795_ O-16 Technician uses terminal to summon reinforcements. 01795_ ALERT: Hostiles spotted, dispatching reinforcements to Terminal M006. 01795_ O-16 Technician locks terminal. Map ----- +----------------------------------------------------+ | | | | | | | | | | | | | | | | | | | | | | | | | ?????????????????????????????????????????????????? | | ?????????????????????????????????????????????????? | | ?????????????????????????????????????????????????? | | ?????????????????????????????????????????????????? | | ?????????????????????# ? ? #??????????????????? | | ?????????????????????# o #??????????????????? | | ?????????????????????# [ #??????????????????? | | ?????????????????????# #??????????????????? | | ?????????????????????# #??????????????????? | | ?????????????????????# """ #####??????????????? | | ?????????????????????# """ # #??????????????? | | ?????????????????????# """ # #??????????????? | | ??????????????????????? ??# #??????????????? | | ???????????????????????##@##### #??????????????? | | ???????????????????????# #??????????????? | | ???????????????????????# #??????????????? | | ???????????????? T T #??????????????? | | ???????????????# ### #??????????????? | | ???????????????# ??????# """ #??????????????? | | ???????????????????????# """ #??????????????? | | ???????????????????????# """ +??????????????? | | ???????????????????????# """ #??????????????? | | ???????????????????????# #??????????????? | | ???????????????????????# #??????????????? | | ???????????????????????# ########??????????????? | | ???????????????????????# #?????????????????????? | | ???????????????????????# ??????????????????????? | | ???????????????????????+ ??????????????????????? | | ???????????????????????# ??????????????????????? | | ???????????????????????# ??????????????????????? | | ????????????????????????? ??????????????????????? | | ?????????????????????????????????????????????????? | | ?????????????????????????????????????????????????? | | ?????????????????????????????????????????????????? | | ?????????????????????????????????????????????????? | | ?????????????????????????????????????????????????? | | ?????????????????????????????????????????????????? | | ?????????????????????????????????????????????????? | +----------------------------------------------------+ Best States ------------- Heat Dissipation 31 Energy Generation 10 Energy Capacity 250 Matter Stores 300 Matter Capacity 300 Sight Range 16 Terrain Scan Density 10 Evasion (%) 55 Item Schematics ----------------- None Robot Schematics ------------------ None Fabricated ------------ Nothing Alien Tech Used ----------------- None Achievements -------------- None Challenges ------------ Unstable Evolution Game ------ Seed NodeSpectralSuperbattery Manual? 0 Play Time 00:10:35 Cumulative 249.0 hours Start 2022.11.10 @ 17:27:20 End 2022.11.10 @ 17:38:13 Sessions 1 Manual Loads 0 Difficulty Rogue Special Mode None Game No. 176 Rogue 153 Adventurer 6 Explorer 17 Win Type - Total 18 Types 11/0/3/1/0/1/1/1/0 Lore% 93 Gallery% 92 Achievement% 72 Wizard Run 0 Options --------- ASCII 0 Keyboard 0 Movement Numpad Keybinds 0 Fullscreen 1 Font 12/Fuzzy Map View 83x54 Tactical HUD 1 Map Filters NONE Filters NONE Steam 1 RUN: 353ce46f-bf49-42b8-b6ef-6c5d14aaa3d6